bitfinex-derivatives/quotes_SOLF0:USTF0_20260306
["timestamp","ask_amount","ask_price","bid_price","bid_amount"]
[1772797517787,3.68617311,87.535,87.49,3.41898761]
[1772797518091,10.281,87.529,87.49,3.41898761]
[1772797518295,3.68617311,87.535,87.481,13.94591798]
[1772797518499,3.68617311,87.535,87.482,3.65891798]
[1772797519090,3.68617311,87.535,87.49,3.41898761]
[1772797519393,3.68617311,87.535,87.482,3.65891798]
[1772797519895,10.282,87.523,87.482,3.65891798]
[1772797520795,10.283,87.517,87.482,3.65891798]
[1772797522996,3.68617311,87.523,87.471,3.65891798]
[1772797523791,10.283,87.512,87.471,13.94691798]
[1772797523993,10.283,87.512,87.438,20.584]
[1772797523994,3.41898761,87.51,87.458,3.65891798]
[1772797524196,3.68617311,87.499,87.444,3.65891798]
[1772797524389,3.68617311,87.496,87.453,10.29]
[1772797524596,3.68617311,87.496,87.45,3.41898761]
[1772797524896,3.68617311,87.496,87.46,3.41898761]
[1772797525097,10.286,87.488,87.46,3.41898761]
[1772797525289,3.68617311,87.496,87.46,3.41898761]
[1772797525597,3.68617311,87.496,87.451,3.65891798]
[1772797526892,10.285,87.495,87.452,10.29]
[1772797527501,3.68617311,87.489,87.44,3.41898761]
[1772797527800,3.68617311,87.489,87.44,7.07790559]
[1772797528197,3.68617311,87.471,87.434,10.292]
[1772797528397,3.68617311,87.471,87.42,3.41898761]
[1772797528398,3.41898761,87.47,87.42,3.41898761]
[1772797528696,3.68617311,87.469,87.42,3.41898761]
[1772797528892,3.68617311,87.484,87.44,3.41898761]
[1772797529301,13.97417311,87.473,87.434,10.292]
[1772797529995,13.97417311,87.473,87.42,3.41898761]
[1772797530201,10.289,87.465,87.423,3.65891798]
[1772797530400,3.68617311,87.473,87.423,3.65891798]
[1772797531001,13.97517311,87.465,87.423,3.65891798]
[1772797531199,3.68617311,87.464,87.423,3.65891798]
[1772797532297,10.289,87.46,87.409,3.96397235]
[1772797532501,14.04577937,87.46,87.41,7.08857677]
[1772797532904,3.75677937,87.454,87.411,10.295]
[1772797533497,20.569,87.506,87.379,20.598]
[1772797533498,3.75677937,87.468,87.421,3.66958916]
[1772797533695,3.75677937,87.468,87.43,3.41898761]
[1772797535000,3.41898761,87.46,87.404,3.66958916]
[1772797535198,3.75677937,87.449,87.404,3.66958916]
[1772797535400,8.90843145,87.5,87.266,60.74437725]
[1772797535401,160.207,87.383,87.266,60.74437725]
[1772797535699,8.90843145,87.382,87.34,3.41898761]
[1772797535899,10.58032636,87.368,87.34,3.41898761]
[1772797536203,8.90843145,87.367,87.326,60.74437725]
[1772797536401,8.90843145,87.366,87.326,60.74437725]
[1772797536601,8.90843145,87.365,87.31,3.41898761]
[1772797536904,3.41898761,87.38,87.32,3.41898761]
[1772797536905,10.301,87.358,87.32,3.41898761]
[1772797537101,8.90843145,87.357,87.33,3.41898761]
[1772797537302,11.17414771,87.356,87.32,64.16336486]
[1772797537501,11.17414771,87.355,87.32,64.16336486]
[1772797537702,11.17414771,87.354,87.32,64.16336486]
[1772797538005,3.41898761,87.38,87.31,64.07667455]
[1772797538304,3.41898761,87.37,87.31,64.07667455]
[1772797538607,10.93060942,87.369,87.31,60.65768694]
[1772797538804,10.93060942,87.368,87.31,60.65768694]
[1772797539003,10.93060942,87.367,87.31,60.65768694]
[1772797539201,10.93060942,87.366,87.31,60.65768694]
[1772797539399,10.93060942,87.365,87.31,60.65768694]
[1772797539703,10.93060942,87.364,87.31,60.65768694]
[1772797539903,10.93060942,87.363,87.31,60.65768694]
[1772797540204,10.93060942,87.362,87.31,60.65768694]
[1772797540405,22.03757345,87.389,87.31,60.65768694]
[1772797540406,10.303,87.348,87.31,60.65768694]
[1772797541703,10.301,87.36,87.31,69.23414318]
[1772797544204,10.299,87.375,87.31,69.23414318]
[1772797544409,8.57645624,87.41,87.31,69.23414318]
[1772797544700,10.79148421,87.409,87.31,69.23414318]
[1772797544904,10.79148421,87.408,87.31,69.23414318]
[1772797545101,10.79148421,87.407,87.31,69.23414318]
[1772797545302,10.79148421,87.406,87.31,69.23414318]
[1772797545606,11.48077384,87.407,87.31,69.23414318]
[1772797545607,10.58032636,87.403,87.31,69.23414318]
[1772797545807,11.48077384,87.407,87.31,69.23414318]
[1772797545808,10.301,87.359,87.31,69.23414318]
[1772797546307,8.57645624,87.39,87.31,60.65768694]
[1772797546504,10.58032636,87.382,87.31,60.65768694]
[1772797546706,10.78010483,87.381,87.31,60.65768694]
[1772797547005,10.78010483,87.38,87.31,60.65768694]
[1772797547207,10.78010483,87.379,87.31,60.65768694]
[1772797547407,10.78010483,87.378,87.31,60.65768694]
[1772797547603,10.78010483,87.377,87.31,60.65768694]
[1772797547901,10.303,87.341,87.31,60.65768694]
[1772797551510,10.76235784,87.369,87.31,69.23414318]
[1772797551710,10.58032636,87.405,87.31,69.23414318]
[1772797551910,10.75215553,87.4,87.31,69.23414318]
[1772797552104,10.75215553,87.399,87.31,69.23414318]
[1772797552307,10.75215553,87.398,87.31,69.23414318]
[1772797552605,10.75215553,87.397,87.31,69.23414318]
[1772797552806,10.75215553,87.396,87.31,69.23414318]
[1772797553008,10.75215553,87.395,87.31,69.23414318]
[1772797553206,10.302,87.351,87.31,60.65768694]
[1772797553508,8.57645624,87.41,87.26,62.0]
[1772797553509,10.75215553,87.393,87.321,60.71527161]
[1772797553709,10.75215553,87.392,87.321,60.71527161]
[1772797553899,10.75215553,87.391,87.321,60.71527161]
[1772797554102,160.208,87.382,87.281,60.71527161]
[1772797554302,8.57645624,87.37,87.281,60.71527161]
[1772797554512,10.75215553,87.369,87.281,60.71527161]
[1772797554706,10.75215553,87.368,87.281,60.71527161]
[1772797554915,10.75215553,87.367,87.281,60.71527161]
[1772797555209,10.75215553,87.366,87.281,60.71527161]
[1772797555408,10.75215553,87.365,87.281,60.71527161]
[1772797555609,10.75215553,87.364,87.281,60.71527161]
[1772797555808,10.306,87.32,87.281,60.71527161]
[1772797556009,10.75215553,87.362,87.281,60.71527161]
[1772797556204,10.75215553,87.361,87.281,60.71527161]
[1772797556402,20.604,87.356,87.281,60.71527161]
[1772797556602,10.75215553,87.355,87.281,60.71527161]
[1772797556806,160.27,87.348,87.265,60.70534762]
[1772797557110,20.609,87.335,87.265,60.70534762]
[1772797557310,10.75215553,87.334,87.265,60.70534762]
[1772797557510,10.75215553,87.333,87.265,60.70534762]
[1772797557711,8.57645624,87.35,87.265,60.70534762]
[1772797557912,10.68851503,87.349,87.265,60.70534762]
[1772797558206,8.57645624,87.35,87.265,60.70534762]
[1772797558207,10.68851503,87.348,87.265,60.70534762]
[1772797558410,10.68851503,87.347,87.265,60.70534762]
[1772797558610,10.68851503,87.346,87.265,60.70534762]
[1772797558810,20.608,87.337,87.265,60.70534762]
[1772797559010,10.68851503,87.336,87.265,60.70534762]
[1772797559211,10.68851503,87.335,87.265,60.70534762]
[1772797559412,20.608,87.337,87.265,60.70534762]
[1772797559613,10.308,87.304,87.265,60.70534762]
[1772797560013,20.608,87.337,87.265,60.70534762]
[1772797560306,10.68336445,87.336,87.265,60.70534762]
[1772797560508,10.68336445,87.335,87.265,60.70534762]
[1772797560710,10.68336445,87.334,87.265,60.70534762]
[1772797560909,10.68839061,87.333,87.265,60.70534762]
[1772797561111,10.68839061,87.332,87.265,60.70534762]
[1772797561312,20.612,87.322,87.265,60.70534762]
[1772797561715,10.68690984,87.321,87.265,60.70534762]
[1772797561907,20.607,87.345,87.265,60.70534762]
[1772797562108,10.68751541,87.344,87.265,60.70534762]
[1772797562313,8.57645624,87.33,87.248,55.51366794]
[1772797562516,20.613,87.316,87.248,55.51366794]
[1772797563318,8.57645624,87.35,87.251,55.5136418]
[1772797563520,10.68623096,87.349,87.271,55.52216876]
[1772797563725,10.68623096,87.348,87.271,55.52216876]
[1772797564016,435.96422634,87.356,87.271,55.52216876]
[1772797564214,10.68742461,87.355,87.271,55.52216876]
[1772797564411,435.96422634,87.356,87.22,8.57645624]
[1772797564412,10.68742461,87.354,87.291,55.52216876]
[1772797564616,435.96422634,87.356,87.291,55.52216876]
[1772797564812,435.96422634,87.356,87.311,55.52216876]
[1772797568421,10.303,87.343,87.311,55.52216876]
[1772797568618,435.96422634,87.356,87.311,55.52216876]
[1772797569024,10.303,87.343,87.311,55.52216876]
[1772797569323,435.96422634,87.356,87.311,55.52216876]
[1772797570226,10.73556633,87.355,87.311,55.52216876]
[1772797570521,435.96422634,87.356,87.311,55.52216876]
[1772797570727,10.73661065,87.355,87.311,55.52216876]
[1772797570928,10.304,87.336,87.311,55.52216876]
[1772797571123,435.96422634,87.356,87.23,62.0]
[1772797571124,435.96422634,87.356,87.261,45.18952104]
[1772797571425,10.74289344,87.355,87.261,45.18952104]
[1772797571626,10.74289344,87.354,87.261,45.18952104]
[1772797571826,20.607,87.344,87.261,45.18952104]
[1772797572025,10.74289344,87.343,87.261,45.18952104]
[1772797572226,10.74289344,87.342,87.261,45.18952104]
[1772797572427,10.74289344,87.341,87.261,45.18952104]
[1772797572726,10.307,87.31,87.261,45.18952104]
[1772797573627,20.607,87.343,87.261,45.18952104]
[1772797573828,10.76535637,87.342,87.261,45.18952104]
[1772797574028,10.308,87.305,87.261,45.18952104]
[1772797574327,10.58032636,87.34,87.261,45.18952104]
[1772797574523,10.77895984,87.339,87.261,45.18952104]
[1772797574719,10.306,87.322,87.281,34.85167948]
[1772797574924,10.77895984,87.321,87.281,34.85167948]
[1772797575129,10.77895984,87.32,87.281,34.85167948]
[1772797575323,10.306,87.318,87.281,34.85167948]
[1772797575729,435.96422634,87.356,87.281,34.85167948]
[1772797576022,10.70221904,87.355,87.281,34.85167948]
[1772797576228,10.50689035,87.343,87.281,34.85167948]
[1772797576427,10.70221904,87.342,87.281,34.85167948]
[1772797576628,10.70221904,87.341,87.281,34.85167948]
[1772797576929,10.70221904,87.34,87.281,34.85167948]
[1772797577120,10.50689035,87.338,87.281,34.85167948]
[1772797577321,10.307,87.311,87.281,34.85167948]
[1772797577523,10.50689035,87.338,87.281,34.85167948]
[1772797577929,10.50689035,87.349,87.281,34.85167948]
[1772797578128,10.50689035,87.34,87.281,34.85167948]
[1772797578329,450.06991006,87.356,87.281,34.85167948]
[1772797578330,10.307,87.315,87.281,34.85167948]
[1772797579731,435.96422634,87.356,87.281,34.85167948]
[1772797579732,10.50689035,87.337,87.281,34.85167948]
[1772797580130,10.50689035,87.329,87.281,34.85167948]
[1772797580332,10.50689035,87.333,87.281,34.85167948]
[1772797580531,10.50689035,87.336,87.281,34.85167948]
[1772797580732,10.50689035,87.333,87.281,34.85167948]
[1772797580933,10.50689035,87.332,87.281,34.85167948]
[1772797581132,10.50689035,87.334,87.281,34.85167948]
[1772797581336,10.50689035,87.338,87.281,34.85167948]
[1772797581536,10.307,87.308,87.281,34.85167948]
[1772797581731,10.50689035,87.338,87.281,34.85167948]
[1772797582130,10.50689035,87.339,87.281,34.85167948]
[1772797582437,10.309,87.298,87.281,34.85167948]
[1772797582639,10.50689035,87.344,87.281,34.85167948]
[1772797583139,10.50689035,87.354,87.281,34.85167948]
[1772797583339,435.96422634,87.356,87.281,34.85167948]
[1772797583340,10.50689035,87.355,87.281,34.85167948]
[1772797583639,10.50689035,87.354,87.281,34.85167948]
[1772797584240,446.47111669,87.356,87.281,34.85167948]
[1772797584440,20.605,87.353,87.281,34.85167948]
[1772797585138,10.305,87.325,87.281,34.85167948]
[1772797585939,435.96422634,87.356,87.281,34.85167948]
[1772797586243,435.96422634,87.356,87.301,14.01478888]
[1772797587241,10.304,87.339,87.301,14.01478888]
[1772797587743,435.96422634,87.356,87.301,14.01478888]
[1772797588845,10.303,87.346,87.301,14.01478888]
[1772797590741,9.79293284,87.345,87.301,14.01478888]
[1772797590948,9.79293284,87.344,87.301,14.01478888]
[1772797591147,435.96422634,87.356,87.301,14.01478888]
[1772797591345,9.796033,87.355,87.301,14.01478888]
[1772797591549,10.305,87.326,87.301,14.01478888]
[1772797591748,435.96422634,87.356,87.274,14.00489836]
[1772797591950,10.50689035,87.35,87.274,14.00489836]
[1772797592248,9.79339001,87.349,87.274,14.00489836]
[1772797592447,9.79339001,87.348,87.274,14.00489836]
[1772797592651,9.79339001,87.347,87.274,14.00489836]
[1772797592850,10.308,87.306,87.274,14.00489836]
[1772797593645,8.57552681,87.34,87.274,14.00489836]
[1772797593851,9.79250432,87.339,87.274,14.00489836]
[1772797594050,9.79250432,87.338,87.274,14.00489836]
[1772797594252,10.309,87.297,87.274,14.00489836]
[1772797594547,30.40050432,87.337,87.273,183.14]
[1772797594548,10.50689035,87.327,87.273,183.14]
[1772797594752,9.79124903,87.326,87.274,13.98676899]
[1772797595047,9.79124903,87.325,87.274,13.98676899]
[1772797595250,9.79124903,87.324,87.274,13.98676899]
[1772797595550,20.61,87.33,87.274,13.98676899]
[1772797595551,10.309,87.294,87.274,13.98676899]
[1772797597052,10.308,87.302,87.274,13.98676899]
[1772797598252,10.309,87.293,87.236,13.99944211]
[1772797598648,10.50689035,87.333,87.236,13.99944211]
[1772797598845,10.50689035,87.329,87.236,13.99944211]
[1772797599154,9.7480388,87.328,87.236,13.99944211]
[1772797599350,9.7480388,87.327,87.236,13.99944211]
[1772797599655,20.612,87.32,87.236,13.99944211]
[1772797599853,9.7480388,87.319,87.236,13.99944211]
[1772797600049,9.7480388,87.318,87.236,13.99944211]
[1772797600247,10.31,87.288,87.238,14.00615869]
[1772797600852,9.7480388,87.315,87.238,14.00615869]
[1772797601153,20.612,87.32,87.238,14.00615869]
[1772797601452,9.74046003,87.319,87.238,14.00615869]
[1772797601657,9.74046003,87.318,87.238,14.00615869]
[1772797601855,10.50689035,87.339,87.248,14.00600938]
[1772797602152,9.74085434,87.338,87.248,14.00600938]
[1772797602353,10.309,87.296,87.248,14.00600938]
[1772797603650,10.31,87.287,87.248,14.00600938]
[1772797604755,9.74035185,87.324,87.23,13.98620553]
[1772797605059,8.57552681,87.31,87.23,13.98620553]
[1772797605249,9.74035185,87.309,87.23,13.98620553]
[1772797605447,20.616,87.304,87.23,13.98620553]
[1772797605651,9.74035185,87.303,87.23,13.98620553]
[1772797605852,20.616,87.304,87.23,13.98620553]
[1772797606049,9.73078119,87.303,87.23,13.98620553]
[1772797606251,20.616,87.304,87.23,13.98620553]
[1772797606957,10.312,87.269,87.23,13.98620553]
[1772797608660,8.57552681,87.29,87.218,13.93207023]
[1772797609757,20.618,87.295,87.218,13.93207023]
[1772797610763,10.312,87.27,87.218,13.93207023]
[1772797613757,10.313,87.263,87.218,13.93207023]
[1772797613956,8.57552681,87.31,87.221,13.92232891]
[1772797614161,9.72090162,87.316,87.221,13.92232891]
[1772797614358,9.72090162,87.329,87.241,13.92232891]
[1772797614561,3.43504877,87.31,87.26,3.43504877]
[1772797614762,10.31,87.284,87.26,3.43504877]
[1772797615265,10.309,87.293,87.26,3.43504877]
[1772797616867,10.309,87.293,87.26,17.36709337]
[1772797617068,3.43504877,87.31,87.202,299.0]
[1772797617069,3.43504877,87.3,87.25,3.43504877]
[1772797617274,3.43504877,87.3,87.244,13.9320446]
[1772797617569,3.43504877,87.29,87.244,13.9320446]
[1772797617771,10.313,87.264,87.244,13.9320446]
[1772797617960,3.43504877,87.29,87.244,13.9320446]
[1772797618862,3.43504877,87.29,87.24,3.43504877]
[1772797619466,10.312,87.269,87.231,13.8850085]
[1772797620572,3.43504877,87.29,87.24,3.43504877]
[1772797621873,20.614,87.312,87.25,3.43504877]
[1772797622075,3.43504877,87.29,87.24,3.43504877]
[1772797622476,10.313,87.262,87.24,3.43504877]
[1772797624070,10.312,87.269,87.24,3.43504877]
[1772797624475,3.43504877,87.29,87.24,3.43504877]
[1772797625278,10.313,87.262,87.24,3.43504877]
[1772797626971,10.5733821,87.308,87.241,13.97690315]
[1772797627274,10.11200735,87.307,87.251,13.97690315]
[1772797627578,10.311,87.277,87.251,13.97690315]
[1772797627871,24.05004877,87.31,87.251,13.97690315]
[1772797628071,10.11312385,87.309,87.251,13.97690315]
[1772797628270,10.31,87.282,87.251,13.97690315]
[1772797629067,10.311,87.276,87.251,13.97690315]
[1772797629770,10.312,87.269,87.251,13.97690315]
[1772797629975,3.43504877,87.29,87.23,3.43504877]
[1772797630180,10.10850587,87.289,87.23,3.43504877]
[1772797630378,10.10850587,87.288,87.23,17.37587807]
[1772797630576,3.43504877,87.29,87.23,17.37587807]
[1772797630775,10.11141875,87.289,87.24,3.43504877]
[1772797630977,10.11141875,87.288,87.24,3.43504877]
[1772797631180,10.312,87.266,87.24,3.43504877]
[1772797632581,10.312,87.266,87.24,3.43689167]
[1772797632878,20.618,87.298,87.25,3.43689167]
[1772797632879,10.312,87.273,87.25,3.43689167]
[1772797633081,10.312,87.273,87.23,13.9408293]
[1772797633082,10.312,87.273,87.24,3.43689167]
[1772797633283,3.43689167,87.29,87.24,3.43689167]
[1772797633482,10.12930415,87.289,87.24,3.43689167]
[1772797633676,10.311,87.274,87.24,3.43689167]
[1772797633876,3.43689167,87.29,87.24,3.43689167]
[1772797634078,10.09560021,87.289,87.24,3.43689167]
[1772797634383,10.09560021,87.288,87.24,3.43689167]
[1772797634580,3.43689167,87.29,87.24,3.43689167]
[1772797634581,10.09560021,87.287,87.24,3.43689167]
[1772797634776,10.312,87.268,87.24,3.43689167]
[1772797637079,10.313,87.262,87.24,3.43689167]
[1772797637272,3.43689167,87.29,87.23,13.9408293]
[1772797637472,10.11539832,87.289,87.24,3.43689167]
[1772797637672,10.312,87.267,87.24,3.43689167]
[1772797638279,3.43689167,87.29,87.23,13.9408293]
[1772797638280,3.43689167,87.29,87.23,17.37772097]
[1772797638580,20.69157294,87.289,87.23,17.37772097]
[1772797638781,10.11819084,87.288,87.23,13.9408293]
[1772797638981,10.11819084,87.287,87.23,17.37772097]
[1772797639173,10.11819084,87.286,87.23,17.37772097]
[1772797639378,10.11819084,87.285,87.23,17.37772097]
[1772797639577,10.11819084,87.284,87.23,17.37772097]
[1772797639778,10.11819084,87.283,87.23,17.37772097]
[1772797639975,10.11819084,87.282,87.23,17.37772097]
[1772797640177,10.5733821,87.288,87.23,17.37772097]
[1772797640178,10.11819084,87.281,87.23,17.37772097]
[1772797640380,10.11819084,87.28,87.24,3.43689167]
[1772797640580,10.11819084,87.279,87.24,3.43689167]
[1772797640781,10.11819084,87.278,87.24,3.43689167]
[1772797640981,10.11819084,87.277,87.24,3.43689167]
[1772797641183,10.11819084,87.276,87.24,3.43689167]
[1772797641382,10.11819084,87.275,87.24,3.43689167]
[1772797641584,10.11819084,87.274,87.24,3.43689167]
[1772797641784,10.312,87.27,87.25,3.43689167]
[1772797642183,10.312,87.27,87.24,3.43689167]
[1772797643084,20.618,87.298,87.24,3.43689167]
[1772797643285,9.95301145,87.297,87.24,3.43689167]
[1772797643485,9.95301145,87.296,87.24,3.43689167]
[1772797643687,9.95301145,87.295,87.24,3.43689167]
[1772797643887,9.95301145,87.294,87.24,3.43689167]
[1772797644087,9.95301145,87.293,87.24,3.43689167]
[1772797644287,9.95301145,87.292,87.24,3.43689167]
[1772797644484,9.95301145,87.291,87.24,3.43689167]
[1772797644681,9.95301145,87.29,87.24,3.43689167]
[1772797644888,10.312,87.269,87.24,3.43689167]
[1772797645389,10.313,87.263,87.24,3.43689167]
[1772797645786,10.313,87.263,87.173,299.0]
[1772797645787,3.43689167,87.29,87.189,13.91628644]
[1772797646088,160.332,87.314,87.22,3.43689167]
[1772797646089,10.314,87.249,87.22,3.43689167]
[1772797648086,11.43263158,87.259,87.21,3.43689167]
[1772797648291,9.9567628,87.258,87.21,3.43689167]
[1772797648487,9.9567628,87.257,87.21,3.43689167]
[1772797648692,9.9567628,87.256,87.21,3.43689167]
[1772797648888,9.9567628,87.255,87.21,3.43689167]
[1772797649089,9.9567628,87.254,87.21,3.43689167]
[1772797649292,10.316,87.238,87.21,3.43689167]
[1772797651689,10.315,87.245,87.21,3.43689167]
[1772797652496,10.5733821,87.279,87.231,13.92851608]
[1772797652690,9.91711915,87.278,87.24,3.43689167]
[1772797652894,9.91711915,87.277,87.24,3.43689167]
[1772797653093,10.5733821,87.295,87.24,3.43689167]
[1772797653094,10.312,87.269,87.24,3.43689167]
[1772797653294,10.5733821,87.306,87.25,3.43689167]
[1772797653497,9.768576,87.305,87.25,3.43689167]
[1772797653800,9.768576,87.304,87.25,3.43689167]
[1772797653991,9.768576,87.303,87.25,3.43689167]
[1772797654191,3.43689167,87.3,87.25,3.43689167]
[1772797654396,9.768576,87.299,87.25,3.43689167]
[1772797654600,9.768576,87.298,87.25,3.43689167]
[1772797654900,10.31,87.285,87.25,3.43689167]
[1772797655100,9.768576,87.284,87.25,3.43689167]
[1772797655303,11.59475324,87.298,87.243,13.92851608]
[1772797655596,10.311,87.276,87.243,13.92851608]
[1772797655802,3.43689167,87.3,87.243,13.92851608]
[1772797656102,9.4690932,87.299,87.243,13.92851608]
[1772797656301,9.4690932,87.298,87.243,13.92851608]
[1772797656503,9.4690932,87.297,87.243,13.92851608]
[1772797656694,9.4690932,87.296,87.243,13.92851608]
[1772797656998,9.4690932,87.295,87.243,13.92851608]
[1772797657298,11.3507858,87.298,87.198,20.641]
[1772797657299,10.31,87.284,87.251,13.92071449]
[1772797657500,10.31,87.284,87.25,3.43689167]
[1772797657896,10.311,87.276,87.24,3.43689167]
[1772797659605,3.43689167,87.28,87.23,3.43689167]
[1772797660899,10.312,87.27,87.23,3.43689167]
[1772797662705,3.43689167,87.28,87.23,3.43689167]
[1772797662900,9.40600502,87.279,87.222,13.95208812]
[1772797663096,9.40600502,87.278,87.222,13.95208812]
[1772797663398,9.40600502,87.277,87.222,13.95208812]
[1772797663604,9.40600502,87.276,87.222,13.95208812]
[1772797663807,10.313,87.259,87.222,13.95208812]
[1772797667311,10.61299821,87.293,87.21,3.43689167]
[1772797667512,3.43689167,87.27,87.21,3.43689167]
[1772797667707,11.3507858,87.298,87.2,3.43689167]
[1772797667708,3.43689167,87.25,87.2,3.43689167]
[1772797667909,10.317,87.229,87.195,13.93371567]
[1772797668506,10.61609422,87.283,87.19,3.43689167]
[1772797668713,3.43689167,87.24,87.18,17.37111624]
[1772797669612,3.43689167,87.23,87.18,13.93422457]
[1772797670305,3.43689167,87.23,87.18,17.37111624]
[1772797671606,3.43689167,87.24,87.18,17.37111624]
[1772797671806,10.61609422,87.269,87.201,13.94053145]
[1772797672006,3.43689167,87.25,87.201,13.94053145]
[1772797672713,10.61609422,87.275,87.22,3.43689167]
[1772797672914,3.43689167,87.27,87.22,3.43689167]
[1772797673214,10.312,87.266,87.23,3.43689167]
[1772797674818,10.311,87.274,87.24,3.43689167]
[1772797675014,10.311,87.274,87.23,14.04178976]
[1772797675015,10.311,87.274,87.23,17.47868143]
[1772797676719,3.43689167,87.29,87.24,3.43689167]
[1772797676924,10.311,87.281,87.25,3.43689167]
[1772797677319,10.311,87.281,87.241,14.04155743]
[1772797682921,3.43689167,87.29,87.23,3.43689167]
[1772797683226,9.3876241,87.289,87.23,3.43689167]
[1772797683426,9.3876241,87.288,87.24,3.43689167]
[1772797683626,9.3876241,87.287,87.24,3.43689167]
[1772797683827,9.3876241,87.286,87.24,3.43689167]
[1772797684023,9.3876241,87.285,87.24,3.43689167]
[1772797684224,3.43689167,87.29,87.24,3.43689167]
[1772797684424,9.38869526,87.289,87.23,13.97203734]
[1772797684719,3.43689167,87.28,87.23,17.40892901]
[1772797685322,10.312,87.269,87.23,17.40892901]
[1772797687619,3.43689167,87.29,87.24,17.40972052]
[1772797687818,9.35035808,87.289,87.25,3.43689167]
[1772797688022,9.35035808,87.288,87.23,3.43689167]
[1772797688328,3.43689167,87.28,87.23,3.43689167]
[1772797688628,10.312,87.267,87.23,3.43689167]
[1772797689225,10.311,87.274,87.232,13.9728511]
[1772797689530,10.311,87.274,87.24,3.43689167]
[1772797690932,10.311,87.274,87.232,13.9728511]
[1772797691330,10.311,87.274,87.234,13.9745552]
[1772797691526,10.311,87.274,87.24,3.43689167]
[1772797692233,10.311,87.281,87.24,17.41144687]
[1772797692634,11.3507858,87.298,87.24,17.41144687]
[1772797692836,3.43689167,87.29,87.24,17.41144687]
[1772797693028,9.35054102,87.289,87.24,17.41144687]
[1772797693226,10.312,87.269,87.24,3.43689167]
[1772797694428,10.312,87.269,87.24,3.43687586]
[1772797695832,10.311,87.277,87.24,17.41122557]
[1772797697036,10.311,87.277,87.24,13.97434971]
[1772797697633,10.31,87.284,87.24,17.41122557]
[1772797697838,10.31,87.284,87.242,13.97419362]
[1772797698233,10.31,87.284,87.244,10.315]
[1772797698430,10.31,87.284,87.245,13.97370474]
[1772797698631,11.41525194,87.298,87.261,13.97370474]
[1772797698936,445.50211616,87.299,87.261,13.97370474]
[1772797699439,9.35349139,87.298,87.249,13.97370474]
[1772797699736,9.35349139,87.297,87.251,13.97370474]
[1772797699938,445.50211616,87.299,87.251,13.97370474]
[1772797700138,9.35330984,87.298,87.251,13.97370474]
[1772797700338,445.50211616,87.299,87.251,13.97370474]
[1772797700534,9.35266524,87.298,87.251,13.97370474]
[1772797700737,10.309,87.296,87.251,13.97370474]
[1772797701836,3.43687586,87.29,87.243,10.315]
[1772797702033,3.43687586,87.29,87.238,13.96318153]
[1772797702236,3.43687586,87.29,87.241,13.96318153]
[1772797703043,456.76496519,87.299,87.241,13.96318153]
[1772797703342,456.76496519,87.299,87.243,13.9624956]
[1772797703343,10.311,87.281,87.243,13.9624956]
[1772797706049,10.311,87.274,87.243,13.9624956]
[1772797706244,10.311,87.274,87.231,13.96057485]
[1772797708251,10.311,87.274,87.23,3.43687586]
[1772797708252,10.31,87.282,87.234,10.316]
[1772797708451,10.31,87.282,87.24,17.39171242]
[1772797709147,456.76496519,87.299,87.251,13.95483656]
[1772797709348,9.34979841,87.298,87.251,13.95483656]
[1772797709653,9.34979841,87.297,87.251,13.95483656]
[1772797709951,456.76496519,87.299,87.251,13.95483656]
[1772797710342,9.34901964,87.298,87.251,13.95483656]
[1772797710543,456.76496519,87.299,87.251,13.95483656]
[1772797710753,3.43687586,87.29,87.24,3.43687586]
[1772797710952,3.43687586,87.28,87.225,13.95042868]
[1772797711153,9.35036379,87.279,87.225,13.95042868]
[1772797711352,9.35036379,87.278,87.23,3.43687586]
[1772797711555,3.43687586,87.28,87.23,3.43687586]
[1772797711754,9.35005437,87.279,87.23,3.43687586]
[1772797711950,10.313,87.26,87.225,13.95042868]
[1772797714656,3.43687586,87.26,87.211,13.95216634]
[1772797715459,3.43687586,87.27,87.211,13.95216634]
[1772797715958,10.313,87.26,87.213,13.95216634]
[1772797716456,10.314,87.253,87.215,13.95216634]
[1772797716656,3.43687586,87.25,87.215,13.95216634]
[1772797717853,10.314,87.249,87.215,13.95216634]
[1772797718956,3.43687586,87.24,87.196,14.01008497]
[1772797719759,10.316,87.235,87.196,14.01008497]
[1772797720163,3.43687586,87.23,87.196,14.01008497]
[1772797721057,10.317,87.227,87.196,14.01008497]
[1772797721259,9.33817026,87.269,87.196,14.01008497]
[1772797721462,3.43687586,87.24,87.196,14.01008497]
[1772797721763,10.316,87.236,87.196,14.01008497]
[1772797722458,10.313,87.258,87.217,13.98755391]
[1772797724963,10.314,87.251,87.217,13.98755391]
[1772797726160,10.313,87.259,87.217,13.98755391]